fUSD/lending_fUSD_20260402
["ID","MTS","AMOUNT","RATE_DAILY","PERIOD"]
[419319447,1775159442311,-2000.0,0.0001589,2]
[419319448,1775159442320,-500.0,0.00015998,2]
[419319449,1775159442329,-500.0,0.00015998,2]
[419319450,1775159442338,-500.0,0.00015998,2]
[419319451,1775159442348,-500.0,0.00015999,2]
[419319452,1775159442357,-500.0,0.00015999,2]
[419319453,1775159442366,-500.0,0.00015999,2]
[419319454,1775159442375,-258.95,0.00015999,2]
[419319455,1775159442384,-1000.0,0.00016,2]
[419319456,1775159442394,-1600.0,0.00016259,2]
[419319457,1775159442403,-258.95,0.00016273,2]
[419319458,1775159442413,-156.95,0.00016319,2]
[419319459,1775159442422,-25224.91618332,0.00016344,2]
[419319460,1775159442432,-1290.3,0.00016438,2]
[419319461,1775159442441,-1346.0,0.00016445,2]
[419319462,1775159442451,-621.0,0.00016445,2]
[419319463,1775159442460,-1046.0,0.00016445,2]
[419319464,1775159442469,-1263.0,0.00016445,2]
[419319465,1775159442478,-1217.0,0.00016445,2]
[419319466,1775159442487,-925.0,0.00016445,2]
[419319467,1775159442497,-501.675,0.00016445,2]
[419319468,1775159442506,-3768.0,0.00016445,2]
[419319469,1775159442515,-258.96,0.00016547,2]
[419319470,1775159442524,-502.0,0.00017046,5]
[419319471,1775159442533,-412.0,0.00017197,2]
[419319472,1775159442543,-5533.0,0.000173,5]
[419319473,1775159442552,-7906.18,0.00017467,2]
[419319474,1775159442561,-1600.0,0.00018065,2]
[419319475,1775159442570,-154.78244339,0.00018161,2]
[419319476,1775159442579,-10233.961,0.000182,2]
[419319477,1775159442588,-2709.32269992,0.00018218,2]
[419319478,1775159442597,-150.99,0.00018533,2]
[419319479,1775159442606,-156.95,0.0001865,2]
[419319480,1775159442616,-1290.3,0.0001868,2]
[419319481,1775159442626,-500.0,0.00018998,2]
[419319482,1775159442635,-25224.91618332,0.00019113,2]
[419319483,1775159442644,-267.15,0.00019178,2]
[419319484,1775159442654,-2000.0,0.000192,2]
[419319485,1775159442663,-1346.0,0.00019445,2]
[419319486,1775159442672,-621.0,0.00019445,2]
[419319487,1775159442682,-1046.0,0.00019445,2]
[419319488,1775159442691,-1263.0,0.00019445,2]
[419319489,1775159442701,-1217.0,0.00019445,2]
[419319490,1775159442710,-925.0,0.00019445,2]
[419319491,1775159442719,-415.0,0.00019445,2]
[419319492,1775159442728,-1180.776,0.00019448,2]
[419319493,1775159442737,-164.1467169,0.00019448,2]
[419319494,1775159442746,-500.0,0.00019663,2]
[419319495,1775159442755,-200.0,0.00019664,2]
[419319496,1775159442764,-5974.75745409,0.00019664,2]
[419319497,1775159442774,-1428.38747117,0.00019664,2]
[419319498,1775159442783,-500.0,0.00019664,2]
[419319499,1775159442792,-500.0,0.00019664,2]
[419319500,1775159442801,-500.0,0.00019664,2]
[419319501,1775159442810,-500.0,0.00019664,2]
[419319502,1775159442820,-500.0,0.00019664,2]
[419319503,1775159442830,-500.0,0.00019664,2]
[419319504,1775159442839,-500.0,0.00019664,2]
[419319505,1775159442848,-500.0,0.00019664,2]
[419319506,1775159442857,-500.0,0.00019664,2]
[419319507,1775159442866,-500.0,0.00019664,2]
[419319508,1775159442875,-500.0,0.00019664,2]
[419319509,1775159442885,-500.0,0.00019664,2]
[419319510,1775159442894,-256.50767874,0.00019664,2]
[419319511,1775159442904,-151.0,0.00019664,2]
[419319512,1775159442913,-200.0,0.00019664,2]
[419319513,1775159442922,-250.0,0.00019664,2]
[419319514,1775159442931,-174.61919142,0.00019664,2]
[419319515,1775159442940,-250.0,0.00019664,2]
[419319516,1775159442949,-250.0,0.00019664,2]
[419319517,1775159442958,-500.0,0.00019664,2]
[419319518,1775159442969,-250.0,0.00019664,2]
[419319519,1775159442979,-500.0,0.00019664,2]
[419319520,1775159442989,-250.0,0.00019664,2]
[419319521,1775159442998,-500.0,0.00019664,2]
[419319523,1775159443007,-250.0,0.00019664,2]
[419319524,1775159443018,-500.0,0.00019664,2]
[419319525,1775159443028,-250.0,0.00019664,2]
[419319526,1775159443037,-500.0,0.00019664,2]
[419319527,1775159443046,-599.60298507,0.00019664,2]
[419319528,1775159443056,-250.0,0.00019664,2]
[419319529,1775159443065,-500.0,0.00019664,2]
[419319530,1775159443075,-250.0,0.00019664,2]
[419319531,1775159443084,-500.0,0.00019664,2]
[419319532,1775159443093,-250.0,0.00019664,2]
[419319533,1775159443102,-500.0,0.00019664,2]
[419319534,1775159443112,-250.0,0.00019664,2]
[419319535,1775159443121,-500.0,0.00019664,2]
[419319536,1775159443130,-500.0,0.00019664,2]
[419319537,1775159443140,-500.0,0.00019664,2]
[419319538,1775159443149,-500.0,0.00019719,2]
[419319539,1775159443159,-151.0,0.00019719,2]
[419319540,1775159443168,-150.0,0.00019726,2]
[419319541,1775159443177,-500.0,0.00019774,2]
[419319542,1775159443187,-151.0,0.00019774,2]
[419319543,1775159443197,-1600.0,0.00019872,2]
[419319544,1775159443207,-200.0,0.0002,10]
[419319545,1775159443216,-300.0,0.000201,10]
[419319546,1775159443226,-168.26,0.00020328,2]
[419319548,1775159443446,-1290.3,0.00020921,2]
[419319549,1775159443456,-502.0,0.0002098,8]
[419319550,1775159443466,-156.95,0.00020981,2]
[419319551,1775159443475,-174.02,0.00021076,2]
[419319552,1775159443485,-150.0,0.00021096,2]
[419319553,1775159443495,-3375.81532785,0.00021324,2]
[419319554,1775159443505,-2809.0,0.0002133,2]
[419319555,1775159443515,-1600.0,0.00021678,2]
[419319556,1775159443524,-25224.91618332,0.00021883,2]
[419319557,1775159443535,-767.0,0.00021916,10]
[419319558,1775159443544,-2395.0,0.00021916,10]
[419319559,1775159443554,-5000.0,0.00021918,2]
[419319560,1775159443564,-1502.67288953,0.00021918,2]
[419319561,1775159443574,-500.0,0.00021918,2]
[419319562,1775159443583,-500.0,0.00021918,2]
[419319563,1775159443592,-500.0,0.00021918,2]
[419319564,1775159443602,-219.04812323,0.00021918,2]
[419319565,1775159443612,-150.0,0.00021918,2]
[419319566,1775159443621,-205.68,0.0002198,2]
[419319567,1775159443631,-2809.0,0.00021987,2]
[419319568,1775159443641,-1090.63,0.00022,30]
[419319569,1775159443652,-332.0,0.00022,2]
[419319570,1775159443661,-632.0,0.00022,2]
[419319571,1775159443671,-755.0,0.00022,2]
[419319572,1775159443681,-1924.0,0.00022,2]
[419319573,1775159443690,-662.0,0.00022,2]
[419319574,1775159443701,-336.0,0.00022,2]
[419319575,1775159443711,-413.67469237,0.00022039,2]
[419319576,1775159443721,-185.74675493,0.00022172,2]
[419319577,1775159443731,-2709.32269992,0.00022197,2]
[419319578,1775159443740,-500.0,0.00022289,2]
[419319579,1775159443750,-349.0,0.0002229,2]
[419319580,1775159443760,-587.08409678,0.00022299,2]
[419319581,1775159443770,-2809.0,0.00022337,2]
[419319582,1775159443780,-1000.0,0.0002237,2]
[419319583,1775159443789,-1171.92,0.00022433,2]
[419319584,1775159443799,-1346.0,0.00022445,2]
[419319585,1775159443808,-621.0,0.00022445,2]
[419319586,1775159443818,-1046.0,0.00022445,2]
[419319587,1775159443827,-975.056,0.00022445,2]
[419319588,1775159443837,-1217.0,0.00022445,2]
[419319590,1775159443847,-925.0,0.00022445,2]
[419319592,1775159443857,-415.0,0.00022445,2]
[419319593,1775159443868,-150.0,0.00022466,2]
[419319595,1775159443877,-906.70195866,0.0002254,2]
[419319596,1775159443887,-350.0,0.00022789,3]
[419319597,1775159443896,-2000.0,0.000229,2]
[419319598,1775159443906,-150.0,0.00022908,2]
[419319599,1775159443915,-400.0,0.0002297,2]
[419319600,1775159443925,-150.0,0.00022973,2]
[419319601,1775159443935,-12545.45834429,0.00023,2]
[419319603,1775159444979,-3768.0,0.00019445,2]
[419319604,1775159444990,-28.07952087,0.00022445,2]
[419319605,1775159445003,-1339.14,0.00022445,2]
[419319606,1775159446350,-1078.9369937,0.00022445,2]
[419319607,1775159446362,-1164.30778418,0.00022445,2]
[419319608,1775159446404,-157.53570125,0.00022445,2]
[419319609,1775159446414,-151.11699311,0.0002254,2]
[419319610,1775159446424,-75882.30812805,0.00023,2]
[419319611,1775159446433,-303.39899038,0.00023,2]
[419319612,1775159446443,-238.26555071,0.00023,2]
[419319613,1775159446453,-332.0,0.00023,2]
[419319614,1775159446462,-632.0,0.00023,2]
[419319615,1775159446471,-755.0,0.00023,2]
[419319616,1775159446480,-1924.0,0.00023,2]
[419319617,1775159446490,-662.0,0.00023,2]
[419319618,1775159446499,-336.0,0.00023,2]
[419319619,1775159446508,-192.11,0.00023,8]
[419319620,1775159446518,-735.0,0.00023,10]
[419319621,1775159446527,-2296.0,0.00023,10]
[419319622,1775159446537,-250.0,0.00023014,4]
[419319623,1775159446547,-1275.84328384,0.00023093,120]
[419319624,1775159446556,-680.08686706,0.00023093,120]
[419319625,1775159446565,-165.36374049,0.00023093,120]
[419319626,1775159446574,-1136.76,0.00023106,2]
[419319627,1775159446584,-500.0,0.00023113,2]
[419319628,1775159446593,-1290.3,0.00023163,2]
[419319629,1775159446602,-744.26,0.00023163,2]
[419319630,1775159446612,-744.26,0.00023163,2]
[419319631,1775159446622,-744.26,0.00023163,2]
[419319632,1775159446631,-744.26,0.00023163,2]
[419319633,1775159446640,-744.26,0.00023163,2]
[419319634,1775159446649,-744.26,0.00023163,2]
[419319635,1775159446659,-744.26,0.00023163,2]
[419319636,1775159446669,-1210.36,0.00023163,2]
[419319637,1775159446678,-1842.0,0.00023198,5]
[419319638,1775159446687,-351.0,0.00023198,7]
[419319639,1775159446697,-1075.27998608,0.000232,2]
[419319640,1775159446708,-490.4789,0.000233,37]
[419319641,1775159446718,-1115.0,0.00023518,2]
[419319642,1775159446727,-250.0,0.00023521,2]
[419319643,1775159446736,-539.76,0.00023578,2]
[419319644,1775159446745,-2809.0,0.00023711,3]
[419319645,1775159446754,-1101.6,0.00023779,2]
[419319646,1775159446763,-439.59,0.00023797,2]
[419319647,1775159446773,-150.0,0.00023836,2]
[419319648,1775159446782,-1030.55635874,0.00024,2]
[419319649,1775159446791,-3600.0,0.00024,2]
[419319650,1775159446801,-1245.9906386,0.00024,2]
[419319651,1775159446810,-332.0,0.00024,2]
[419319652,1775159446820,-632.0,0.00024,2]
[419319653,1775159446829,-755.0,0.00024,2]
[419319654,1775159446839,-1924.0,0.00024,2]
[419319655,1775159446849,-662.0,0.00024,2]
[419319656,1775159446859,-336.0,0.00024,2]
[419319657,1775159446868,-350.0,0.00024068,2]
[419319658,1775159446878,-1350.0,0.00024151,2]
[419319659,1775159446887,-150.0,0.00024151,2]
[419319660,1775159446896,-425.64978124,0.0002421,2]
[419319661,1775159446906,-3729.28814448,0.0002421,2]
[419319662,1775159446915,-500.0,0.00024296,2]
[419319663,1775159446924,-285.0,0.00024351,3]
[419319664,1775159446934,-161.0,0.00024351,3]
[419319666,1775159446943,-168.24,0.00024364,2]
[419319668,1775159446954,-580.9309,0.000244,42]
[419319669,1775159446963,-1000.0,0.000245,2]
[419319670,1775159446973,-219.00096718,0.00024573,2]
[419319671,1775159446983,-205.54988715,0.00024573,2]
[419319672,1775159446993,-450.0,0.00024616,2]
[419319673,1775159447003,-25224.91618332,0.00024652,2]
[419319674,1775159447013,-456.26,0.00024658,2]
[419319675,1775159447024,-1000.0,0.00024658,2]
[419319676,1775159447036,-150.0,0.0002475,7]
[419319677,1775159447047,-1115.0,0.00024755,2]
[419319678,1775159447057,-150.0,0.00024899,2]
[419319679,1775159447067,-150.0,0.00024899,2]
[419319680,1775159447076,-150.0,0.00024899,2]
[419319681,1775159447086,-150.0,0.00024899,2]
[419319682,1775159447095,-150.0,0.00024899,2]
[419319683,1775159447105,-150.0,0.00024899,2]
[419319684,1775159447114,-150.0,0.00024899,2]
[419319685,1775159447124,-150.0,0.00024899,2]
[419319686,1775159447133,-150.0,0.00024899,2]
[419319687,1775159447142,-150.0,0.00024899,2]
[419319688,1775159447151,-150.0,0.00024899,2]
[419319689,1775159447161,-150.0,0.00024899,2]
[419319690,1775159447170,-150.0,0.00024899,2]
[419319691,1775159447179,-150.0,0.00024899,2]
[419319692,1775159447189,-150.0,0.00024899,2]
[419319693,1775159447198,-203.93416844,0.00024899,2]
[419319694,1775159447208,-500.0,0.00024899,2]
[419319695,1775159447217,-2304.0,0.000249,5]
[419319696,1775159447227,-600.0,0.000249,9]
[419319697,1775159447236,-18032.0669814,0.000249,2]
[419319698,1775159447246,-502.0,0.00024915,12]
[419319699,1775159447255,-3278.55763298,0.0002499,2]
[419319700,1775159447264,-300.0,0.00025,4]
[419319701,1775159447274,-175.7,0.00025,2]
[419319702,1775159447283,-1121.72294388,0.00025,2]
[419319703,1775159447292,-208.94337893,0.00025,2]
[419319704,1775159447302,-1797.36887838,0.00025,2]
[419319705,1775159447311,-2000.0,0.00025,2]
[419319706,1775159447321,-540.0,0.00025,2]
[419319707,1775159447331,-615.04018663,0.00025,2]
[419319708,1775159447340,-3064.70761901,0.00025,2]
[419319709,1775159447350,-7175.3774718,0.00025,2]
[419319710,1775159447359,-2215.37691676,0.00025,2]
[419319711,1775159447368,-168.4554534,0.00025,2]
[419319712,1775159447378,-2007.17745799,0.00025,2]
[419319713,1775159447387,-3819.22534226,0.00025,2]
[419319714,1775159447397,-150.0,0.00025,2]
[419319715,1775159447406,-500.0,0.00025,2]
[419319716,1775159447416,-332.0,0.00025,2]
[419319717,1775159447425,-632.0,0.00025,2]
[419319718,1775159447435,-755.0,0.00025,2]
[419319719,1775159447444,-1924.0,0.00025,2]
[419319720,1775159447454,-662.0,0.00025,2]
[419319721,1775159447463,-336.0,0.00025,2]
[419319722,1775159447472,-432.84308139,0.00025054,2]
[419319723,1775159447482,-534.66181886,0.0002509,2]
[419319724,1775159447491,-550.0,0.00025164,2]
[419319725,1775159447500,-150.0,0.00025205,2]
[419319726,1775159447510,-351.0,0.00025256,7]
[419319727,1775159447519,-197.46224712,0.0002529,2]
[419319728,1775159447529,-5000.0,0.0002529,2]
[419319729,1775159447538,-1525.74412,0.00025294,2]
[419319730,1775159447547,-3278.55763298,0.0002537,2]
[419319731,1775159447557,-3278.55763298,0.0002538,2]
[419319732,1775159447566,-500.0,0.00025389,2]
[419319733,1775159447575,-500.0,0.00025389,2]
[419319734,1775159447585,-12664.61977453,0.0002539,2]
[419319735,1775159447603,-438.838836,0.0002539,2]
[419319736,1775159447614,-1274.7499995,0.0002539,2]
[419319750,1775160632130,-186.31196912,0.00012955,2]
[419319751,1775160632140,-150.0,0.00012998,2]
[419319752,1775160632150,-300.0,0.00012998,2]
[419319753,1775160632159,-1200.0,0.00012998,2]
[419319754,1775160632169,-7806.29550399,0.00012999,2]
[419319755,1775160632192,-19316.24836917,0.00012999,2]
[419319756,1775160632203,-584.84684353,0.00012999,2]
[419319757,1775160632219,-376.36,0.00012999,2]
[419319763,1775160637654,-381.56271105,0.00012999,2]
[419319764,1775160637708,-1287.1,0.00012999,2]
[419319765,1775160639797,-43887.75121193,0.00012999,2]
[419319766,1775160639807,-250.0,0.00013,2]
[419319767,1775160639816,-500.0,0.00013,2]
[419319768,1775160639826,-500.0,0.00013,2]
[419319769,1775160639835,-477.87246848,0.00013,2]
[419319770,1775160639845,-4125.31561733,0.00013,2]
[419319771,1775160639855,-503.0,0.00013111,2]
[419319772,1775160639864,-502.0,0.00013111,2]
[419319773,1775160639873,-150.0,0.00013699,2]
[419319774,1775160639882,-150.0,0.00013699,2]
[419319775,1775160639891,-500.0,0.00013814,2]
[419319776,1775160639900,-500.0,0.00013814,2]
[419319777,1775160639909,-500.25875044,0.00013825,2]
[419319778,1775160639919,-500.0,0.00013825,2]
[419319779,1775160639928,-502.25926533,0.00013825,2]
[419319780,1775160639939,-500.0,0.00013825,2]
[419319781,1775160639949,-503.78850108,0.00013825,2]
[419319782,1775160639959,-500.51190389,0.00013825,2]
[419319783,1775160639969,-500.14404481,0.00013825,2]
[419319784,1775160639978,-500.0,0.00013825,2]
[419319785,1775160639988,-500.0,0.00013825,2]
[419319786,1775160639997,-167.59874888,0.00013825,2]
[419319787,1775160640006,-410.18429076,0.00013825,2]
[419319788,1775160640026,-500.0,0.00013825,2]
[419319789,1775160640036,-500.0,0.00013825,2]
[419319790,1775160640045,-347.75300802,0.00013825,2]
[419319791,1775160640055,-500.0,0.00013825,2]
[419319792,1775160640064,-500.0,0.00013825,2]
[419319793,1775160640076,-600.0,0.00014021,7]
[419319794,1775160640086,-165.28132276,0.00014022,2]
[419319795,1775160640095,-165.28132276,0.00014022,2]
[419319796,1775160640105,-165.28132276,0.00014022,2]
[419319797,1775160640115,-165.28132276,0.00014022,2]
[419319798,1775160640126,-165.28132276,0.00014022,2]
[419319799,1775160640137,-165.28132276,0.00014022,2]
[419319800,1775160640146,-165.28132276,0.00014022,2]
[419319801,1775160640156,-165.28132276,0.00014022,2]
[419319802,1775160640165,-165.28132276,0.00014022,2]
[419319803,1775160640174,-165.28132276,0.00014022,2]
[419319804,1775160640184,-165.28132276,0.00014022,2]
[419319805,1775160640195,-165.28132276,0.00014022,2]
[419319806,1775160640204,-165.28132276,0.00014022,2]
[419319807,1775160640213,-165.28132276,0.00014022,2]
[419319808,1775160640223,-165.28132276,0.00014022,2]
[419319809,1775160640232,-165.28132276,0.00014022,2]
[419319810,1775160640241,-165.28132276,0.00014022,2]
[419319811,1775160640250,-165.28132276,0.00014022,2]
[419319812,1775160640259,-165.28132276,0.00014022,2]
[419319813,1775160640268,-165.28132276,0.00014022,2]
[419319814,1775160640277,-165.28132276,0.00014022,2]
[419319815,1775160640288,-165.28132276,0.00014022,2]
[419319816,1775160640298,-165.28132276,0.00014022,2]
[419319817,1775160640307,-165.28132276,0.00014022,2]
[419319818,1775160640316,-165.28132276,0.00014022,2]
[419319819,1775160640326,-165.28132276,0.00014022,2]
[419319820,1775160640335,-165.28132276,0.00014022,2]
[419319821,1775160640345,-165.28132276,0.00014022,2]
[419319822,1775160640354,-165.28132276,0.00014022,2]
[419319823,1775160640363,-165.28132276,0.00014022,2]
[419319824,1775160640372,-165.28132276,0.00014022,2]
[419319826,1775160640382,-165.28132276,0.00014022,2]
[419319828,1775160640391,-165.28132276,0.00014022,2]
[419319830,1775160640400,-165.28132276,0.00014022,2]
[419319832,1775160640409,-165.28132276,0.00014022,2]
[419319834,1775160640418,-165.28132276,0.00014022,2]
[419319836,1775160640428,-165.28132276,0.00014022,2]
[419319838,1775160640437,-165.28132276,0.00014022,2]
[419319840,1775160640447,-165.28132276,0.00014022,2]
[419319842,1775160640456,-165.28132276,0.00014022,2]
[419319844,1775160640465,-165.28132276,0.00014022,2]
[419319846,1775160640474,-165.28132276,0.00014022,2]
[419319848,1775160640483,-165.28132276,0.00014022,2]
[419319850,1775160640493,-165.28132276,0.00014022,2]
[419319852,1775160640503,-165.28132276,0.00014022,2]
[419319854,1775160640512,-165.28132276,0.00014022,2]
[419319857,1775160640525,-165.28132276,0.00014022,2]
[419319859,1775160640535,-165.28132276,0.00014022,2]
[419319861,1775160640545,-165.28132276,0.00014022,2]
[419319863,1775160640554,-165.28132276,0.00014022,2]
[419319865,1775160640563,-500.0,0.00014022,2]
[419319867,1775160640573,-218.0,0.00014042,2]
[419319869,1775160640583,-255.0,0.00014103,2]
[419319871,1775160640593,-347.38,0.00014177,2]
[419319873,1775160640602,-500.0,0.00014221,2]
[419319875,1775160640612,-2500.0,0.00014251,2]
[419319876,1775160640622,-2500.0,0.00014251,2]
[419319877,1775160640632,-2500.0,0.00014251,2]
[419319878,1775160640642,-2500.0,0.00014251,2]
[419319879,1775160640652,-300.0,0.00014251,2]
[419319880,1775160640661,-300.0,0.00014251,2]
[419319881,1775160640671,-300.0,0.00014251,2]
[419319882,1775160640681,-300.0,0.00014251,2]
[419319883,1775160640691,-300.0,0.00014251,2]
[419319884,1775160640700,-250.0,0.00014251,2]
[419319885,1775160640712,-2500.0,0.00014251,2]
[419319886,1775160640721,-420.0,0.00014255,2]
[419319887,1775160640731,-500.0,0.00014296,2]
[419319888,1775160640742,-1680.0,0.00014298,2]
[419319889,1775160640751,-972.0,0.00014333,2]
[419319890,1775160640761,-263.24916206,0.00014373,2]
[419319891,1775160640770,-1000.0,0.00014373,2]
[419319892,1775160640780,-1000.0,0.00014373,2]
[419319893,1775160640789,-455.14370669,0.00014373,2]
[419319894,1775160640800,-1000.0,0.00014373,2]
[419319895,1775160640809,-1000.0,0.00014373,2]
[419319896,1775160640819,-1000.0,0.00014373,2]
[419319897,1775160640828,-1000.0,0.00014373,2]
[419319898,1775160640838,-150.47,0.00014384,2]
[419319899,1775160640848,-500.0,0.0001457,2]
[419319900,1775160640857,-298.0,0.00014587,2]
[419319901,1775160640867,-150.31858386,0.00014587,2]
[419319902,1775160640877,-1463.0,0.00014622,2]
[419319903,1775160640888,-257.0,0.00014622,2]
[419319904,1775160640897,-739.0,0.00014651,2]
[419319905,1775160640907,-306.98897865,0.00014651,2]
[419319906,1775160640918,-150.0,0.00014687,2]
[419319907,1775160640929,-500.0,0.00014762,2]
[419319908,1775160640940,-474.86270361,0.00014844,2]
[419319909,1775160640950,-1500.0,0.00014921,2]
[419319910,1775160640961,-500.0,0.00014921,2]
[419319911,1775160640970,-501.4622297,0.00014921,2]
[419319912,1775160640980,-500.0,0.00014921,2]
[419319913,1775160640990,-500.0,0.00014921,2]
[419319914,1775160641000,-300.0,0.00015,2]
[419319915,1775160641010,-283.0,0.00015299,2]
[419319916,1775160641019,-495.97,0.00015471,2]
[419319917,1775160641028,-500.0,0.000155,5]
[419319918,1775160641038,-500.0,0.000155,5]
[419319919,1775160641048,-500.0,0.000155,5]
[419319920,1775160641057,-249.0,0.00015513,2]
[419319921,1775160641066,-1100.0,0.000156,5]
[419319922,1775160641075,-1100.0,0.000156,5]
[419319923,1775160641085,-1100.0,0.000156,5]
[419319924,1775160641095,-587.0,0.00015632,2]
[419319925,1775160641104,-1700.0,0.000157,5]
[419319926,1775160641114,-1700.0,0.000157,5]
[419319927,1775160641124,-1700.0,0.000157,5]
[419319928,1775160641133,-2351.0,0.00015728,2]
[419319929,1775160641142,-495.97,0.00015745,2]
[419319930,1775160641153,-2300.0,0.000158,5]
[419319931,1775160641163,-2300.0,0.000158,5]
[419319932,1775160641173,-2300.0,0.000158,5]
[419319933,1775160641183,-532.9299,0.00015819,2]
[419319934,1775160641193,-2900.0,0.000159,5]
[419319935,1775160641203,-2900.0,0.000159,5]
[419319936,1775160641213,-2900.0,0.000159,5]
[419319937,1775160641223,-755.0,0.000159,2]
[419319938,1775160641235,-2370.65736243,0.00015919,2]
[419319939,1775160641244,-6423.54106759,0.00015919,2]
[419319940,1775160641254,-22702.42456506,0.00015919,2]
[419319941,1775160641264,-379.65946726,0.00015919,2]
[419319942,1775160641274,-1218.51055261,0.00015919,2]
[419319943,1775160641285,-414.51601919,0.00015919,2]
[419319944,1775160641295,-4821.11902036,0.00015919,2]
[419319945,1775160641305,-12978.52360884,0.00015919,2]
[419319946,1775160641315,-588.33024838,0.00015919,2]
[419319947,1775160641324,-198.39010278,0.00015919,2]
[419319948,1775160641334,-812.60064126,0.00015919,2]
[419319949,1775160641343,-500.0,0.00015973,2]
[419319950,1775160641352,-476.79585531,0.00015989,2]
[419319951,1775160641362,-365.94666867,0.0001599,2]
[419319952,1775160641372,-365.94666867,0.0001599,2]
[419319953,1775160641381,-666.0,0.00015999,2]
[419319954,1775160641391,-500.0,0.00015999,2]
[419319955,1775160641400,-500.0,0.00015999,2]
[419319956,1775160641410,-500.0,0.00015999,2]
[419319957,1775160641419,-500.0,0.00015999,2]
[419319958,1775160641429,-500.0,0.00015999,2]
[419319959,1775160641439,-500.0,0.00015999,2]
[419319960,1775160641448,-500.0,0.00015999,2]
[419319961,1775160641458,-500.0,0.00015999,2]
[419319962,1775160641467,-500.0,0.00015999,2]
[419319963,1775160641476,-500.0,0.00015999,2]
[419319964,1775160641486,-500.0,0.00015999,2]
[419319965,1775160641495,-500.0,0.00015999,2]
[419319966,1775160641505,-256.34438791,0.00015999,2]
[419319967,1775160641515,-500.0,0.00015999,2]
[419319968,1775160641524,-500.0,0.00015999,2]
[419319969,1775160641534,-227.95304474,0.00015999,2]
[419319970,1775160641544,-500.0,0.00015999,2]
[419319971,1775160641553,-500.0,0.00015999,2]
[419319972,1775160641563,-260.86825676,0.00015999,2]
[419319973,1775160641572,-456.05812875,0.00015999,2]
[419319974,1775160641581,-500.0,0.00015999,2]
[419319975,1775160641591,-500.0,0.00015999,2]
[419319976,1775160641600,-478.54432676,0.00015999,2]
[419319977,1775160641909,-500.35090504,0.00015999,2]
[419319978,1775160641928,-500.0,0.00015999,2]
[419319979,1775160641938,-500.0,0.00015999,2]
[419319980,1775160641947,-500.0,0.00015999,2]
[419319981,1775160641956,-500.0,0.00015999,2]
[419319982,1775160641966,-500.0,0.00015999,2]
[419319983,1775160641975,-529.32193136,0.00015999,2]
[419319984,1775160641984,-500.0,0.00015999,2]
[419319985,1775160641993,-604.92219005,0.00015999,2]
[419319986,1775160642002,-500.0,0.00015999,2]
[419319987,1775160642011,-443.61429513,0.00015999,2]
[419319988,1775160642020,-321.16469326,0.00015999,2]
[419319989,1775160642028,-500.0,0.00015999,2]
[419319990,1775160642037,-500.0,0.00015999,2]
[419319991,1775160642046,-500.0,0.00015999,2]
[419319992,1775160642055,-500.0,0.00015999,2]
[419319993,1775160642065,-500.0,0.00015999,2]
[419319994,1775160642074,-500.0,0.00015999,2]
[419319995,1775160642083,-500.0,0.00015999,2]
[419319996,1775160642091,-500.0,0.00015999,2]
[419319997,1775160642100,-500.0,0.00015999,2]
[419319998,1775160642110,-500.0,0.00015999,2]